Workbook

Sheet с 7 до 11 лет
A4: ПРИМЕРНОЕ МЕНЮ И ПИЩЕВАЯ ЦЕННОСТЬ
A5: ПРИГОТАВЛИВАЕМЫХ БЛЮД
A6: (2-х недельное)
A10: Сезон: Осень-зима
A11: Возростная категория: Начальные классы
D12: 1-ая неделя/Понедельник
A13: Прием пищи, наименование блюда | B13: Вес блюда | C13: Пищевые вещества (г) | F13: Энерг. ценность | G13: № рецептуры
C14: Белки | D14: Жиры | E14: Углеводы
A15: 1 | B15: 2 | C15: 3 | D15: 4 | E15: 5 | F15: 6 | G15: 7
A16: Завтрак | E16: 21
A17: Макароны отварные с томатным соусом | B17: 180 | C17: 7.5 | D17: 7.5 | E17: 21 | F17: 210 | G17: КП24030
A18: Какао с молоком | B18: 200 | C18: 3.1 | D18: 4 | E18: 24 | F18: 180 | G18: КП24044
A19: Хлеб пшеничный формовой с витаминами (В1,В2,Е) и железом "Свежий2" из муки пшеничной | B19: 40 | C19: 2.2 | D19: 0.48 | E19: 13 | F19: 94 | G19: 0000065
A20: Сыр порционный | B20: 12 | C20: 2.8 | D20: 3.5 | E20: 0 | F20: 44 | G20: КП24060
A21: Фрукты свеж.(шт.) | B21: 100 | C21: 0.4 | D21: 0.4 | E21: 9.8 | F21: 47 | G21: КП24061
A22: Всего в Завтрак | B22: =SUM(B17:B21) -> 532 | C22: =SUM(C17:C21) -> 16 | D22: 15.88 | E22: 67.8 | F22: 575
A23: Обед
A24: Щи из свежей капусты с картофелем со сметаной | B24: 200 | C24: 1.4 | D24: 5.98 | E24: 26.12 | F24: 157 | G24: КП24118
A25: Каша гречневая рассыпчатая | B25: 150 | C25: 5.8 | D25: 5.4 | E25: 27 | F25: 180 | G25: КП24049
A26: Котлеты куриные с соусом томатным | B26: 90 | C26: 12 | D26: 8 | E26: 19 | F26: 293 | G26: КП24032
A27: Чай с сахаром | B27: 200 | C27: 0.2 | D27: 0 | E27: 6.5 | F27: 27 | G27: КП24045
A28: Хлеб пшеничный формовой с витаминами (В1,В2,Е) и железом "Свежий2" из муки пшеничной | B28: 35 | C28: 1.93 | D28: 0.42 | E28: 11.38 | F28: 82 | G28: 0000065
A29: Хлеб ржано-пшеничный формовой с витаминами (В1,В2,Е) и железом "Свежий1" из смеси муки ржаной | B29: 30 | C29: 2.43 | D29: 4.2 | E29: 11 | F29: 71 | G29: ШК00129
A30: Всего в Обед | B30: =SUM(B24:B29) -> 705 | C30: =SUM(C24:C29) -> 23.76 | D30: 24 | E30: 101 | F30: 810
A31: Всего в день | B31: =B22+B30 -> 1237 | C31: =C22+C30 -> 39.76 | D31: 39.88 | E31: 168.8 | F31: 1385
D32: 1-ая неделя/Вторник
A33: Прием пищи, наименование блюда | B33: Вес блюда | C33: Пищевые вещества (г) | F33: Энерг. ценность | G33: № рецептуры
C34: Белки | D34: Жиры | E34: Углеводы
A35: 1 | B35: 2 | C35: 3 | D35: 4 | E35: 5 | F35: 6 | G35: 7
A36: Завтрак
A37: Каша "Дружба" молочная | B37: 170 | C37: 8 | D37: 5.1 | E37: 25 | F37: 240 | G37: КП24048
A38: Сырники из творога с соусом молочным | B38: 90 | C38: 5.4 | D38: 10.42 | E38: 13.5 | F38: 120 | G38: КП24057
A39: Чай с сахаром | B39: 200 | C39: 0.2 | D39: 0 | E39: 6.5 | F39: 27 | G39: КП24045
A40: Хлеб пшеничный формовой с витаминами (В1,В2,Е) и железом "Свежий2" из муки пшеничной | B40: 40 | C40: 2.2 | D40: 0.48 | E40: 13 | F40: 94 | G40: 0000065
A41: Всего в Завтрак | B41: =SUM(B37:B40) -> 500 | C41: =SUM(C37:C40) -> 15.8 | D41: =SUM(D37:D40) -> 16 | E41: =SUM(E37:E40) -> 58 | F41: =SUM(F37:F40) -> 481
A42: Обед
A43: Суп картофельный с вермишелью | B43: 200 | C43: 8 | D43: 7.88 | E43: 17.32 | F43: 111 | G43: КП24012
A44: Солянка из сборных овощей | B44: 150 | C44: 1.2 | D44: 0.5 | E44: 16.3 | F44: 108 | G44: КП24064
A45: Котлеты из говядины "Боярские" с соусом томатным | B45: 90 | C45: 9 | D45: 11 | E45: 24 | F45: 231 | G45: КП24040
A46: Компот из смеси сухофруктов | B46: 200 | C46: 0.9 | D46: 0.1 | E46: 21 | F46: 132 | G46: КП24054
A47: Хлеб пшеничный формовой с витаминами (В1,В2,Е) и железом "Свежий2" из муки пшеничной | B47: 35 | C47: 1.93 | D47: 0.42 | E47: 11.38 | F47: 82 | G47: 0000065
A48: Хлеб ржано-пшеничный формовой с витаминами (В1,В2,Е) и железом "Свежий1" из смеси муки ржаной | B48: 30 | C48: 2.43 | D48: 4.2 | E48: 11 | F48: 71 | G48: ШК00129
A49: Всего в Обед | B49: =SUM(B43:B48) -> 705 | C49: =SUM(C43:C48) -> 23.46 | D49: =SUM(D43:D48) -> 24.1 | E49: =SUM(E43:E48) -> 101 | F49: =SUM(F43:F48) -> 735
A50: Всего в день | B50: =B41+B49 -> 1205 | C50: =C41+C49 -> 39.26 | D50: =D41+D49 -> 40.1 | E50: =E41+E49 -> 159 | F50: =F41+F49 -> 1216
D51: 1-ая неделя/Среда
A52: Прием пищи, наименование блюда | B52: Вес блюда | C52: Пищевые вещества (г) | F52: Энерг. ценность | G52: № рецептуры
C53: Белки | D53: Жиры | E53: Углеводы
A54: 1 | B54: 2 | C54: 3 | D54: 4 | E54: 5 | F54: 6 | G54: 7
A55: Завтрак
A56: Каша гречневая рассыпчатая | B56: 170 | C56: 6 | D56: 6.1 | E56: 30.4 | F56: 204 | G56: КП24049
A57: Голубцы ленивые "Детские" под соусом томатным | B57: 90 | C57: 7.6 | D57: 10.98 | E57: 31.34 | F57: 155 | G57: КП24008
A58: Чай с сахаром | B58: 200 | C58: 0.2 | D58: 0 | E58: 6.5 | F58: 27 | G58: КП24045
A59: Хлеб пшеничный формовой с витаминами (В1,В2,Е) и железом "Свежий2" из муки пшеничной | B59: 40 | C59: 2.2 | D59: 0.48 | E59: 11.38 | F59: 94 | G59: 0000065
A60: Всего в Завтрак | B60: =SUM(B56:B59) -> 500 | C60: =SUM(C56:C59) -> 16 | D60: =SUM(D56:D59) -> 17.56 | E60: =SUM(E56:E59) -> 79.62 | F60: =SUM(F56:F59) -> 480
A61: Обед
A62: Салат из белокачанной капусты | B62: 60 | C62: 2 | D62: 1.2 | E62: 4.6 | F62: 33 | G62: КП24063
A63: Рассольник лениградский с крупой перловой со сметаной | B63: 200 | C63: 9 | D63: 10 | E63: 4.6 | F63: 147 | G63: КП24019
A64: Картофель и овощи, тушенные в соусе с куриным фаршем | B64: 190 | C64: 7 | D64: 9.18 | E64: 42.42 | F64: 280 | G64: КП24034
A65: Компот яблочный | B65: 200 | C65: 1.6 | D65: 0 | E65: 29 | F65: 111 | G65: КП24055
A66: Хлеб пшеничный формовой с витаминами (В1,В2,Е) и железом "Свежий2" из муки пшеничной | B66: 35 | C66: 1.93 | D66: 0.42 | E66: 11.38 | F66: 82 | G66: 0000065
A67: Хлеб ржано-пшеничный формовой с витаминами (В1,В2,Е) и железом "Свежий1" из смеси муки ржаной | B67: 30 | C67: 2.43 | D67: 4.2 | E67: 11 | F67: 71 | G67: ШК00129
A68: Всего в Обед | B68: =SUM(B62:B67) -> 715 | C68: =SUM(C62:C67) -> 23.96 | D68: =SUM(D62:D67) -> 25 | E68: =SUM(E62:E67) -> 103 | F68: =SUM(F62:F67) -> 724
A69: Всего в день | B69: =B60+B68 -> 1215 | C69: =C60+C68 -> 39.96 | D69: =D60+D68 -> 42.56 | E69: =E60+E68 -> 182.62 | F69: =F60+F68 -> 1204
D70: 1-ая неделя /Четверг
A71: Прием пищи, наименование блюда | B71: Вес блюда | C71: Пищевые вещества (г) | F71: Энерг. ценность | G71: № рецептуры
C72: Белки | D72: Жиры | E72: Углеводы
A73: 1 | B73: 2 | C73: 3 | D73: 4 | E73: 5 | F73: 6 | G73: 7
A74: Завтрак
A75: Плов из говядины | B75: 160 | C75: 12 | D75: 13.52 | E75: 43.1 | F75: 350 | G75: КП24050
A76: Чай с сахаром | B76: 200 | C76: 0.2 | D76: 0 | E76: 6.5 | F76: 27 | G76: КП24045
A77: Хлеб пшеничный формовой с витаминами (В1,В2,Е) и железом "Свежий2" из муки пшеничной | B77: 40 | C77: 2.2 | D77: 0.48 | E77: 13 | F77: 94 | G77: 0000065
A78: Йогурт | B78: 100 | C78: 3.3 | D78: 3 | E78: 6.4 | F78: 71 | G78: КП24061
A79: Всего в Завтрак | B79: =SUM(B75:B78) -> 500 | C79: =SUM(C75:C78) -> 17.7 | D79: =SUM(D75:D78) -> 17 | E79: =SUM(E75:E78) -> 69 | F79: =SUM(F75:F78) -> 542
A80: Обед
A81: Суп с картофельный с бобовыми и гренками | B81: 200 | C81: 9 | D81: 6.2 | E81: 37 | F81: 217 | G81: КП24010
A82: Макароны отварные с маслом | B82: 150 | C82: 4 | D82: 6 | E82: 15.2 | F82: 200 | G82: КП24052
A83: Котлеты куриные "Наггетсы" с подливом овощным | B83: 90 | C83: 6 | D83: 7.2 | E83: 15 | F83: 86.3 | G83: КП24007
A84: Компот из свежих плодов (яблоко,лимон) | B84: 200 | C84: 0.2 | D84: 0.2 | E84: 12 | F84: 50 | G84: КП24056
A85: Хлеб пшеничный формовой с витаминами (В1,В2,Е) и железом "Свежий2" из муки пшеничной | B85: 35 | C85: 1.93 | D85: 0.42 | E85: 11.38 | F85: 82 | G85: 0000065
A86: Хлеб ржано-пшеничный формовой с витаминами (В1,В2,Е) и железом "Свежий1" из смеси муки ржаной | B86: 30 | C86: 2.43 | D86: 4.2 | E86: 11 | F86: 71 | G86: ШК00129
A87: Всего в Обед | B87: =SUM(B81:B86) -> 705 | C87: =SUM(C81:C86) -> 23.56 | D87: =SUM(D81:D86) -> 24.22 | E87: =SUM(E81:E86) -> 101.58 | F87: =SUM(F81:F86) -> 706.3
A88: Всего в день | B88: =B79+B87 -> 1205 | C88: =C79+C87 -> 41.26 | D88: =D79+D87 -> 41.22 | E88: =E79+E87 -> 170.58 | F88: =F79+F87 -> 1248.3
D89: 1-ая неделя/Пятница
A90: Прием пищи, наименование блюда | B90: Вес блюда | C90: Пищевые вещества (г) | F90: Энерг. ценность | G90: № рецептуры
C91: Белки | D91: Жиры | E91: Углеводы
A92: 1 | B92: 2 | C92: 3 | D92: 4 | E92: 5 | F92: 6 | G92: 7
A93: Завтрак
A94: Картофельное пюре | B94: 170 | C94: 4.5 | D94: 4 | E94: 22 | F94: 180 | G94: КП24051
A95: Биточки рыбные с соусом томатным | B95: 90 | C95: 7.7 | D95: 9.8 | E95: 30.1 | F95: 183 | G95: КП24033
A96: Чай витаминизированный "Витошка" | B96: 200 | C96: 1 | D96: 0 | E96: 2 | F96: 54 | G96: КП24046
A97: Хлеб пшеничный формовой с витаминами (В1,В2,Е) и железом "Свежий2" из муки пшеничной | B97: 40 | C97: 2.2 | D97: 0.48 | E97: 13 | F97: 94 | G97: 0000065
A98: Всего в Завтрак | B98: =SUM(B94:B97) -> 500 | C98: =SUM(C94:C97) -> 15.4 | D98: =SUM(D94:D97) -> 14.28 | E98: =SUM(E94:E97) -> 67.1 | F98: =SUM(F94:F97) -> 511
A99: Обед
A100: Суп крестьянский с крупой (пшено) со сметаной | B100: 200 | C100: 4.6 | D100: 3 | E100: 12 | F100: 170 | G100: КП24119
A101: Каша гречневая рассыпчатая | B101: 150 | C101: 5.8 | D101: 5.4 | E101: 27 | F101: 180 | G101: КП24049
A102: Голубцы ленивые "Детские" под соусом томатным | B102: 90 | C102: 7.6 | D102: 10.98 | E102: 19.62 | F102: 155 | G102: КП24008
A103: Компот из смеси сухофруктов | B103: 200 | C103: 0.9 | D103: 0.1 | E103: 21 | F103: 132 | G103: КП24054
A104: Хлеб пшеничный формовой с витаминами (В1,В2,Е) и железом "Свежий2" из муки пшеничной | B104: 35 | C104: 1.93 | D104: 0.42 | E104: 11.38 | F104: 82 | G104: 0000065
A105: Хлеб ржано-пшеничный формовой с витаминами (В1,В2,Е) и железом "Свежий1" из смеси муки ржаной | B105: 30 | C105: 2.43 | D105: 4.2 | E105: 11 | F105: 71 | G105: ШК00129
A106: Всего в Обед | B106: =SUM(B100:B105) -> 705 | C106: =SUM(C100:C105) -> 23.26 | D106: =SUM(D100:D105) -> 24.1 | E106: =SUM(E100:E105) -> 102 | F106: =SUM(F100:F105) -> 790
A107: Всего в день | B107: =B98+B106 -> 1205 | C107: =C98+C106 -> 38.66 | D107: =D98+D106 -> 38.38 | E107: =E98+E106 -> 169.1 | F107: =F98+F106 -> 1301
D108: 2-ая неделя/Понедельник
A109: Прием пищи, наименование блюда | B109: Вес блюда | C109: Пищевые вещества (г) | F109: Энерг. ценность | G109: № рецептуры
C110: Белки | D110: Жиры | E110: Углеводы
A111: 1 | B111: 2 | C111: 3 | D111: 4 | E111: 5 | F111: 6 | G111: 7
A112: Завтрак
A113: Макароны отварные с маслом | B113: 170 | C113: 4.6 | D113: 6.8 | E113: 16 | F113: 226 | G113: КП24052
A114: Котлеты куриные "Наггетсы" с подливом овощным | B114: 90 | C114: 6 | D114: 7.2 | E114: 15 | F114: 87 | G114: КП24007
A115: Какао с молоком | B115: 200 | C115: 3.1 | D115: 4 | E115: 24 | F115: 180 | G115: КП24044
A116: Хлеб пшеничный формовой с витаминами (В1,В2,Е) и железом "Свежий2" из муки пшеничной | B116: 40 | C116: 2.2 | D116: 0.48 | E116: 13 | F116: 94 | G116: 0000065
A117: Всего в Завтрак | B117: =SUM(B113:B116) -> 500 | C117: =SUM(C113:C116) -> 15.9 | D117: =SUM(D113:D116) -> 18.48 | E117: =SUM(E113:E116) -> 68 | F117: =SUM(F113:F116) -> 587
A118: Обед
A119: Щи из свежей капусты с картофелем со сметаной | B119: 200 | C119: 6.55 | D119: 5.98 | E119: 26.12 | F119: 154 | G119: КП24118
A120: Плов из говядины | B120: 150 | C120: 11.69 | D120: 13.2 | E120: 42 | F120: 324 | G120: КП24050
A121: Чай с сахаром | B121: 200 | C121: 0.2 | D121: 0 | E121: 6.5 | F121: 27 | G121: КП24045
A122: Хлеб пшеничный формовой с витаминами (В1,В2,Е) и железом "Свежий2" из муки пшеничной | B122: 35 | C122: 1.93 | D122: 0.42 | E122: 11.38 | F122: 82 | G122: 0000065
A123: Хлеб ржано-пшеничный формовой с витаминами (В1,В2,Е) и железом "Свежий1" из смеси муки ржаной | B123: 30 | C123: 2.43 | D123: 4.2 | E123: 11 | F123: 71 | G123: ШК00129
A124: Фрукты свеж.(шт.) | B124: 100 | C124: 0.4 | D124: 0.4 | E124: 9.8 | F124: 47 | G124: КП24061
A125: Всего в Обед | B125: =SUM(B119:B124) -> 715 | C125: =SUM(C119:C124) -> 23.2 | D125: =SUM(D119:D124) -> 24.2 | E125: =SUM(E119:E124) -> 106.8 | F125: =SUM(F119:F124) -> 705
A126: Всего в день | B126: =B117+B125 -> 1215 | C126: =C117+C125 -> 39.1 | D126: =D117+D125 -> 42.68 | E126: =E117+E125 -> 174.8 | F126: =F117+F125 -> 1292
D127: 2-ая неделя/Вторник
A128: Прием пищи, наименование блюда | B128: Вес блюда | C128: Пищевые вещества (г) | F128: Энерг. ценность | G128: № рецептуры
C129: Белки | D129: Жиры | E129: Углеводы
A130: 1 | B130: 2 | C130: 3 | D130: 4 | E130: 5 | F130: 6 | G130: 7
A131: Завтрак
A132: Каша гречневая рассыпчатая | B132: 170 | C132: 6.6 | D132: 9.2 | E132: 20 | F132: 266 | G132: КП24049
A133: Котлеты из говядины "Люля-Кебаб" с соусом томатным | B133: 90 | C133: 6.9 | D133: 6 | E133: 34.5 | F133: 110 | G133: КП24005
A134: Чай с сахаром | B134: 200 | C134: 0.3 | D134: 0.3 | E134: 1 | F134: 65 | G134: КП24045
A135: Хлеб пшеничный формовой с витаминами (В1,В2,Е) и железом "Свежий2" из муки пшеничной | B135: 40 | C135: 2.2 | D135: 0.48 | E135: 13 | F135: 94 | G135: 0000065
A136: Всего в Завтрак | B136: =SUM(B132:B135) -> 500 | C136: =SUM(C132:C135) -> 16 | D136: =SUM(D132:D135) -> 15.98 | E136: =SUM(E132:E135) -> 68.5 | F136: =SUM(F132:F135) -> 535
A137: Обед
A138: Суп картофельный с вермишелью | B138: 200 | C138: 8 | D138: 2 | E138: 15 | F138: 111 | G138: КП24012
A139: Картофельное пюре | B139: 150 | C139: 3.9 | D139: 3.8 | E139: 12.3 | F139: 149 | G139: КП24051
A140: Биточки рыбные с соусом томатным | B140: 90 | C140: 7.7 | D140: 9.8 | E140: 21 | F140: 183 | G140: КП24033
A141: Компот яблочный | B141: 200 | C141: 1.6 | D141: 0 | E141: 29 | F141: 111 | G141: КП24055
A142: Хлеб пшеничный формовой с витаминами (В1,В2,Е) и железом "Свежий2" из муки пшеничной | B142: 35 | C142: 1.93 | D142: 0.42 | E142: 11.38 | F142: 82 | G142: 0000065
A143: Хлеб ржано-пшеничный формовой с витаминами (В1,В2,Е) и железом "Свежий1" из смеси муки ржаной | B143: 30 | C143: 2.43 | D143: 4.2 | E143: 11 | F143: 71 | G143: ШК00129
A144: Всего в Обед | B144: =SUM(B138:B143) -> 705 | C144: =SUM(C138:C143) -> 25.56 | D144: =SUM(D138:D143) -> 20.22 | E144: =SUM(E138:E143) -> 99.68 | F144: =SUM(F138:F143) -> 707
A145: Всего в день | B145: =B136+B144 -> 1205 | C145: =C136+C144 -> 41.56 | D145: =D136+D144 -> 36.2 | E145: =E136+E144 -> 168.18 | F145: =F136+F144 -> 1242
D146: 2-ая неделя/Среда
A147: Прием пищи, наименование блюда | B147: Вес блюда | C147: Пищевые вещества (г) | F147: Энерг. ценность | G147: № рецептуры
C148: Белки | D148: Жиры | E148: Углеводы
A149: 1 | B149: 2 | C149: 3 | D149: 4 | E149: 5 | F149: 6 | G149: 7
A150: Завтрак
A151: Каша рисовая молочная | B151: 170 | C151: 6.6 | D151: 9.2 | E151: 20 | F151: 266 | G151: КП24053
A152: Сырники из творога с соусом молочным | B152: 90 | C152: 6.4 | D152: 9.42 | E152: 33.6 | F152: 120 | G152: КП24006
A153: Чай с лимоном и сахаром | B153: 200 | C153: 0.3 | D153: 0.3 | E153: 1 | F153: 65 | G153: КП24047
A154: Хлеб пшеничный формовой с витаминами (В1,В2,Е) и железом "Свежий2" из муки пшеничной | B154: 40 | C154: 2.2 | D154: 0.48 | E154: 13 | F154: 94 | G154: 0000065
A155: Всего в Завтрак | B155: =SUM(B151:B154) -> 500 | C155: =SUM(C151:C154) -> 15.5 | D155: =SUM(D151:D154) -> 19.4 | E155: =SUM(E151:E154) -> 67.6 | F155: =SUM(F151:F154) -> 545
A156: Обед
A157: Свекольник со сметаной | B157: 200 | C157: 5 | D157: 8 | E157: 36.67 | F157: 43.5 | G157: КП24120
A158: Макароны отварные с маслом | B158: 150 | C158: 4 | D158: 6 | E158: 15.2 | F158: 200 | G158: КП24052
A159: Котлеты куриные с соусом томатным | B159: 90 | C159: 12 | D159: 8 | E159: 19 | F159: 293 | G159: КП24032
A160: Компот из смеси сухофруктов | B160: 200 | C160: 0.9 | D160: 0.1 | E160: 21 | F160: 132 | G160: КП24054
A161: Хлеб пшеничный формовой с витаминами (В1,В2,Е) и железом "Свежий2" из муки пшеничной | B161: 35 | C161: 1.93 | D161: 0.42 | E161: 11.38 | F161: 82 | G161: 0000065
A162: Хлеб ржано-пшеничный формовой с витаминами (В1,В2,Е) и железом "Свежий1" из смеси муки ржаной | B162: 30 | C162: 2.43 | D162: 4.2 | E162: 11 | F162: 71 | G162: ШК00129
A163: Всего в Обед | B163: =SUM(B157:B162) -> 705 | C163: =SUM(C157:C162) -> 26.26 | D163: =SUM(D157:D162) -> 26.72 | E163: =SUM(E157:E162) -> 114.25 | F163: =SUM(F157:F162) -> 821.5
A164: Всего в день | B164: =B155+B163 -> 1205 | C164: =C155+C163 -> 41.76 | D164: =D155+D163 -> 46.12 | E164: =E155+E163 -> 181.85 | F164: =F155+F163 -> 1366.5
D165: 2-ая неделя/Четверг
A166: Прием пищи, наименование блюда | B166: Вес блюда | C166: Пищевые вещества (г) | F166: Энерг. ценность | G166: № рецептуры
C167: Белки | D167: Жиры | E167: Углеводы
A168: 1 | B168: 2 | C168: 3 | D168: 4 | E168: 5 | F168: 6 | G168: 7
A169: Завтрак
A170: Борщ со сметаной на курином бульоне | B170: 230 | C170: 10 | D170: 10.32 | E170: 30.5 | F170: 103 | G170: КП24121
A171: Какао с молоком | B171: 200 | C171: 3.1 | D171: 4 | E171: 24 | F171: 180 | G171: КП24044
A172: Хлеб пшеничный формовой с витаминами (В1,В2,Е) и железом "Свежий2" из муки пшеничной | B172: 40 | C172: 2.2 | D172: 0.48 | E172: 13 | F172: 94 | G172: 0000065
A173: Кекс для детского питания | B173: 32 | C173: 1 | D173: 1.2 | E173: 9 | F173: 98 | G173: КП24059
A174: Всего в Завтрак | B174: =SUM(B170:B173) -> 502 | C174: =SUM(C170:C173) -> 16.3 | D174: =SUM(D170:D173) -> 16 | E174: =SUM(E170:E173) -> 76.5 | F174: =SUM(F170:F173) -> 475
A175: Обед
A176: Салат из белокачанной капусты | B176: 90 | C176: 2.5 | D176: 1.8 | E176: 6.9 | F176: 49.5 | G176: КП24063
A177: Суп-лапша домашняя | B177: 200 | C177: 2.4 | D177: 4.8 | E177: 1.8 | F177: 95.6 | G177: КП24016
A178: Каша гречневая рассыпчатая с овощами и куриным фаршем | B178: 150 | C178: 14.04 | D178: 12.78 | E178: 67.02 | F178: 450 | G178: КП24035
A179: Чай с сахаром | B179: 200 | C179: 0.2 | D179: 0 | E179: 6.5 | F179: 27 | G179: КП24045
A180: Хлеб пшеничный формовой с витаминами (В1,В2,Е) и железом "Свежий2" из муки пшеничной | B180: 35 | C180: 1.93 | D180: 0.42 | E180: 11.38 | F180: 82 | G180: 0000065
A181: Хлеб ржано-пшеничный формовой с витаминами (В1,В2,Е) и железом "Свежий1" из смеси муки ржаной | B181: 30 | C181: 2.43 | D181: 4.2 | E181: 11 | F181: 71 | G181: ШК00129
A182: Всего в Обед | B182: =SUM(B176:B181) -> 705 | C182: =SUM(C176:C181) -> 23.5 | D182: =SUM(D176:D181) -> 24 | E182: =SUM(E176:E181) -> 104.6 | F182: =SUM(F176:F181) -> 775.1
A183: Всего в день | B183: =B174+B182 -> 1207 | C183: =C174+C182 -> 39.8 | D183: =D174+D182 -> 40 | E183: =E174+E182 -> 181.1 | F183: =F174+F182 -> 1250.1
D184: 2-ая неделя/Пятница
A185: Прием пищи, наименование блюда | B185: Вес блюда | C185: Пищевые вещества (г) | F185: Энерг. ценность | G185: № рецептуры
C186: Белки | D186: Жиры | E186: Углеводы
A187: 1 | B187: 2 | C187: 3 | D187: 4 | E187: 5 | F187: 6 | G187: 7
A188: Завтрак
A189: Картофельное пюре | B189: 170 | C189: 4.5 | D189: 4 | E189: 22 | F189: 180 | G189: КП24051
A190: Котлеты из говядины "Боярские" с соусом томатным | B190: 90 | C190: 9 | D190: 11 | E190: 31 | F190: 231 | G190: КП24040
A191: Чай с лимоном и сахаром | B191: 200 | C191: 0.3 | D191: 0.3 | E191: 1 | F191: 65 | G191: КП24047
A192: Хлеб пшеничный формовой с витаминами (В1,В2,Е) и железом "Свежий2" из муки пшеничной | B192: 40 | C192: 2.2 | D192: 0.48 | E192: 13 | F192: 94 | G192: 0000065
A193: Всего в Завтрак | B193: =SUM(B189:B192) -> 500 | C193: =SUM(C189:C192) -> 16 | D193: =SUM(D189:D192) -> 15.78 | E193: =SUM(E189:E192) -> 67 | F193: =SUM(F189:F192) -> 570
A194: Обед
A195: Салат из моркови на растительном масле (морковь,сахар) | B195: 90 | C195: 1 | D195: 4.3 | E195: 9.1 | F195: 46 | G195: КП24062
A196: Суп картофельный с бобовыми и гренками | B196: 200 | C196: 9 | D196: 5 | E196: 16 | F196: 162 | G196: КП24010
A197: Плов из говядины | B197: 150 | C197: 11.69 | D197: 13.2 | E197: 42 | F197: 329 | G197: КП24050
A198: Компот из смеси сухофруктов | B198: 200 | C198: 0.9 | D198: 0.1 | E198: 21 | F198: 132 | G198: КП24054
A199: Хлеб пшеничный формовой с витаминами (В1,В2,Е) и железом "Свежий2" из муки пшеничной | B199: 35 | C199: 1.93 | D199: 0.42 | E199: 11.38 | F199: 82 | G199: 0000065
A200: Хлеб ржано-пшеничный формовой с витаминами (В1,В2,Е) и железом "Свежий1" из смеси муки ржаной | B200: 30 | C200: 2.43 | D200: 4.2 | E200: 11 | F200: 71 | G200: ШК00129
A201: Всего в Обед | B201: =SUM(B195:B200) -> 705 | C201: =SUM(C195:C200) -> 26.95 | D201: =SUM(D195:D200) -> 27.22 | E201: =SUM(E195:E200) -> 110.48 | F201: =SUM(F195:F200) -> 822
A202: Всего в день | B202: =B193+B201 -> 1205 | C202: =C193+C201 -> 42.95 | D202: =D193+D201 -> 43 | E202: =E193+E201 -> 177.48 | F202: =F193+F201 -> 1392
A203: Итого: | C203: =C31+C50+C69+C88+C107+C126+C145+C164+C183+C202 -> 404.07 | D203: =D31+D50+D69+D88+D107+D126+D145+D164+D183+D202 -> 410.14 | E203: =E31+E50+E69+E88+E107+E126+E145+E164+E183+E202 -> 1733.51 | F203: =F31+F50+F69+F88+F107+F126+F145+F164+F183+F202 -> 12896.9
